Cogmind - Beta 13 @@@ ROGUE MODE // 2024.07.12 @ 20:52:09 Player: harambe Result: Destroyed by EO-NWU(M) with Heavy Riot Gun Performance ------------- Evolutions (1) 500 Regions Visited (5) 1000 Robots Destroyed (27) 135 Value Destroyed (906) 906 Prototype IDs (2) 40 Alien Tech Used (0) 0 Bonus (808) 808 TOTAL SCORE: 3389 Bonus ------- Follower Combat Kills 457 Met Imprinter 300 Was Imprinted 300 Friendly Fire -249 Cogmind --------- Core Integrity 0/400 Matter 297/300 Energy 100/100 System Corruption 2% Temperature Cool (9) Movement Core (250) Ox4 Location -6/Proximity Caves Parts ------- > --- POWER (1) -------- (None) > --- PROPULSION (3) --- (None) > --- UTILITY (3) ------ Medium Storage Unit Signal Interpreter Improved Armor Integrity Analyzer > --- WEAPON (2) ------- CR-A16's Pointy Stick > --- INVENTORY (10) --- Light Angular Momentum Engine Advanced Heat Sink High-powered Tractor Beam Peak State ------------ > --- POWER ------------ Light Nuclear Core > --- PROPULSION ------- Improved Aluminum Leg Improved Aluminum Leg Carbon-fiber Leg > --- UTILITY ---------- Medium Storage Unit Sensor Array Signal Interpreter > --- WEAPON ----------- Improved Grenade Launcher CR-A16's Pointy Stick > --- INVENTORY -------- Ion Engine Light Angular Momentum Engine Aluminum Leg Carbon-fiber Leg Advanced Heat Sink Improved Armor Integrity Analyzer Hardened Light Armor Plating High-powered Tractor Beam Heavy EM Pulse Gun Particle Cannon [Rating: 23] Favorites ----------- Power Improved Ion Engine Engine Improved Ion Engine Power Core Light Nuclear Core Propulsion Improved Aluminum Leg Treads Light Treads Leg Improved Aluminum Leg Utility Medium Storage Unit Device Improved Heat Sink Storage Medium Storage Unit Processor Signal Interpreter Protection Hardened Light Armor Plating Weapon Particle Cannon Energy Gun Medium Laser Energy Cannon Particle Cannon Ballistic Gun Heavy Assault Rifle Launcher Improved Grenade Launcher Piercing Weapon CR-A16's Pointy Stick Build | -11 -10 -9 -9 -7 -6 ------- Run | Yrd Mat Mat Min Zio Pro Slots Evolved 2 | . . 2 . . . Power . | . . . . . . Propulsion 1 | . . 1 . . . Utility 1 | . . 1 . . . Weapon . | . . . . . . Parts Attached 47 | 6 9 10 8 2 12 Power 5 | . 2 1 . . 2 Engine 3 | . 1 1 . . 1 Core 2 | . 1 . . . 1 Reactor . | . . . . . . Propulsion 16 | 3 2 5 3 . 3 Treads 3 | 1 2 . . . . Leg 13 | 2 . 5 3 . 3 Wheel . | . . . . . . Hover . | . . . . . . Flight . | . . . . . . Utility 11 | 1 4 2 1 1 2 Device 4 | . 1 1 1 1 . Storage 4 | 1 2 1 . . . Processor 2 | . 1 . . . 1 Hackware . | . . . . . . Protection 1 | . . . . . 1 Artifact . | . . . . . . Weapon 15 | 2 1 2 4 1 5 Energy Gun 4 | 1 . 1 1 . 1 Energy Cannon 4 | . . . 3 . 1 Ballistic Gun 3 | 1 1 1 . . . Ballistic Cannon . | . . . . . . Launcher 2 | . . . . . 2 Special Weapon . | . . . . . . Impact Weapon . | . . . . . . Slashing Weapon . | . . . . . . Piercing Weapon 2 | . . . . 1 1 Special Melee Weapon . | . . . . . . Unidentified Prototypes . | . . . . . . Parts Lost 13 | . . 1 1 . 11 Power 2 | . . . . . 2 Propulsion 5 | . . 1 . . 4 Utility 3 | . . . 1 . 2 Weapon 3 | . . . . . 3 Highest Loss Streak 11 | . . 1 1 . 11 To Critical Strikes . | . . . . . . Average Slot Usage (%) 99 | . 98 99 96 100 97 Engine 9 | . 13 1 11 11 . Core 2 | . . 9 . . 9 Leg 31 | . 18 33 31 33 31 Device 10 | . 12 10 9 11 10 Storage 11 | . 14 11 11 11 11 Processor 10 | . . 11 11 11 11 Energy Gun 2 | . 14 11 8 . . Energy Cannon 9 | . . . 6 13 3 Ballistic Gun 2 | . 14 11 6 . . Launcher 1 | . . . . . 6 Piercing Weapon 7 | . . . . 8 10 Naked Turns . | . . . . . . Heaviest Build 26 | 9 21 23 26 26 25 Greatest Support 43 | 20 40 33 41 41 43 Greatest Overweight (x) 4 | 2 1 . . . 4 Average Overweight (x) . | . . . . . . Largest Inventory Capacity 10 | 8 10 10 10 10 10 Average Capacity 9 | 7 8 10 10 10 10 Most Carried 10 | 7 10 10 10 10 10 Average Carried 9 | 4 8 9 9 9 9 Final Capacity 10 | 8 10 10 10 10 10 Final Carried 10 | 7 10 10 10 10 3 Class Distribution -------------------- 81% | Scavenger-Mutant 18% | Mutant Dominant Class ---------------- Mutant | -10/Materials Mutant | -9/Materials Mutant | -9/Mines Scavenger-Mutant | -7/Zion Scavenger-Mutant | -6/Proximity Caves Resources | -11 -10 -9 -9 -7 -6 ----------- Run | Yrd Mat Mat Min Zio Pro Matter Collected 818 | 242 167 162 77 20 150 Remotely . | . . . . . . Salvage Created 1009 | . 295 173 227 . 314 Parts 43 | . 14 10 13 . 6 Haulers Intercepted . | . . . . . . Recyclers Shooed 2 | . 1 1 . . . Parts Field Recycled . | . . . . . . Retrieved Matter . | . . . . . . Parts Self-Destructed 20 | . . . . 3 17 Prevented 10 | . . . . . 10 Kills | -11 -10 -9 -9 -7 -6 ------- Run | Yrd Mat Mat Min Zio Pro Combat Hostiles Destroyed 20 | . 6 3 3 . 8 Guns 12 | . 6 3 2 . 1 AOE 7 | . . . . . 7 Classes Destroyed 10 | . 2 3 3 . 2 Worker 2 | . . 1 1 . . Recycler 1 | . . . 1 . . Mechanic 1 | . . . 1 . . Operator 1 | . . 1 . . . Watcher 1 | . 1 . . . . Swarmer 1 | . . . . . 1 Grunt 10 | . 6 1 2 . 1 Brawler 3 | . . . . . 3 Duelist 4 | . . . 1 . 3 Sentry 2 | . . 2 . . . Thug 1 | . . . . . 1 Best Kill Streak 7 | . 2 3 5 . 7 Combat Bots Only 7 | . 2 1 2 . 7 Max Kills in Single Turn 2 | . 2 2 1 . 2 Gunslinging 1 | . 1 . . . . Exploded 2 | . . . . . 2 Melee . | . . . . . . Uniques/NPCs Destroyed . | . . . . . . Combat | -11 -10 -9 -9 -7 -6 -------- Run | Yrd Mat Mat Min Zio Pro Hostile Shots Fired 139 | . 26 25 30 . 58 Missed 37 | . 8 11 5 . 13 Damage Taken 2312 | . 218 267 549 . 1278 Core 463 | . 63 27 145 . 228 Absorbed by Shields . | . . . . . . Core Remaining (%) 87 | 100 74 . . . . Volleys Fired 76 | . 23 19 20 . 14 Largest 2 | . 2 2 2 . 2 Hottest 124 | . 73 73 124 . 104 Shots Fired 134 | . 46 38 32 . 18 Gun 107 | . 46 38 18 . 5 Cannon 21 | . . . 14 . 7 Launcher 6 | . . . . . 6 Special . | . . . . . . Kinetic 46 | . 23 19 4 . . Thermal 71 | . 23 19 22 . 7 Explosive 6 | . . . . . 6 Electromagnetic 11 | . . . 6 . 5 Robot Hit Streak 17 | . 8 17 5 . 6 Robot Miss Streak 3 | . 3 3 3 . 2 Penetration Max . | . . . . . . Secondary Targets 1 | . 1 . . . . Max Gunslinging Chain 1 | . 1 . . . . Shots Hit Robots 90 | . 32 27 19 . 12 Core Hits 66 | . 15 8 8 . 35 Critical Kills . | . . . . . . Critical Parts Destroyed . | . . . . . . Critical Strikes 11 | . 4 5 2 . . Burn 10 | . 4 4 2 . . Destroy 1 | . . 1 . . . Melee Attacks 4 | . . . . . 4 Impact . | . . . . . . Slashing . | . . . . . . Piercing 4 | . . . . . 4 Sneak Attacks . | . . . . . . Combat Hostiles . | . . . . . . Follow-up Attacks . | . . . . . . Damage Inflicted 2768 | . 407 366 419 . 1576 Guns 959 | . 407 366 146 . 40 Cannons 328 | . . . 196 . 132 Explosions 1446 | . . . 77 . 1369 Melee 35 | . . . . . 35 Ramming . | . . . . . . Kinetic 418 | . 195 192 31 . . Thermal 793 | . 212 174 275 . 132 Explosive 1369 | . . . . . 1369 Electromagnetic 153 | . . . 113 . 40 Impact . | . . . . . . Slashing . | . . . . . . Piercing 35 | . . . . . 35 Highest Corruption 2 | . . . . . 2 Average Corruption 1 | . . . . . 1 Corruption Purged . | . . . . . . Corruption Blocked 2 | . . . . . 2 Overload Shots . | . . . . . . Overflow Damage 3 | . . . 3 . . Projectiles 3 | . . . 3 . . Explosions . | . . . . . . Melee . | . . . . . . Knockbacks . | . . . . . . Impact . | . . . . . . Kinetic . | . . . . . . Secondary . | . . . . . . Self-Inflicted Damage 105 | . . . 54 . 51 Shots 3 | . . . 1 . 2 Rammed . | . . . . . . Targets Rammed . | . . . . . . Kicked . | . . . . . . Crushed . | . . . . . . Highest Temperature 277 | . 161 93 214 . 277 Average Temperature 78 | . 65 36 86 . 141 Received Heat Transfer 627 | . 123 93 165 . 246 Effects 2 | . . . 2 . . Interference 2 | . . . 2 . . Siege Activations . | . . . . . . Robots Corrupted 1 | . . . 1 . . Combat Hostiles 1 | . . . 1 . . Parts Fried . | . . . . . . Impact Corruptions . | . . . . . . Robots Melted . | . . . . . . Combat Hostiles . | . . . . . . Parts Melted 3 | . 2 1 . . . Heat Transferred 2677 | . 925 814 679 . 259 Parts Sabotaged . | . . . . . . Parts Stolen . | . . . . . . Parts Stripped . | . . . . . . Power Chain Reactions 1 | . . . 1 . . Alert | -11 -10 -9 -9 -7 -6 ------- Run | Yrd Mat Mat Min Zio Pro Peak Influence 209 | . 178 209 160 . . Initial 81 | . . 74 81 . . Average 98 | . 101 113 104 . . Maximum Alert Level 1 | . . 1 . . . Low Security (%) 99 | 100 100 98 100 . . Level 1 . | . . 1 . . . Level 2 . | . . . . . . Level 3 . | . . . . . . Level 4 . | . . . . . . Level 5 . | . . . . . . High Security . | . . . . . . Max Security . | . . . . . . Squads Dispatched 5 | . 1 1 2 . 1 Investigation 1 | . 1 . . . . Extermination . | . . . . . . Reinforcement 1 | . . 1 . . . Assault 3 | . . . 2 . 1 Garrison . | . . . . . . Intercept . | . . . . . . Searches Triggered . | . . . . . . Construction Impeded . | . . . . . . Haulers Reinforced . | . . . . . . Active Scanning Responses . | . . . . . . Cargo Convoy Interrupts . | . . . . . . Stealth | -11 -10 -9 -9 -7 -6 --------- Run | Yrd Mat Mat Min Zio Pro Distress Signals 1 | . 1 . . . . Communications Jammed . | . . . . . . Distress Signals . | . . . . . . Times Spotted 47 | . 12 7 5 . 23 Peak Tracking Total 12 | . 5 4 4 . 12 Tactical Retreats . | . . . . . . Traps | -11 -10 -9 -9 -7 -6 ------- Run | Yrd Mat Mat Min Zio Pro Traps Triggered . | . . . . . . Indirectly . | . . . . . . Trap Hack Attempts . | . . . . . . Triggered . | . . . . . . Disarmed . | . . . . . . Reprogrammed . | . . . . . . Reused . | . . . . . . Traps Extracted . | . . . . . . Installed . | . . . . . . Triggered . | . . . . . . Machines | -11 -10 -9 -9 -7 -6 ---------- Run | Yrd Mat Mat Min Zio Pro Machines Disabled . | . . . . . . Max in Single Turn . | . . . . . . Machines Repaired . | . . . . . . Machines Dismantled . | . . . . . . Machines Sabotaged . | . . . . . . Overloaded Fab Kills . | . . . . . . Hacking | -11 -10 -9 -9 -7 -6 --------- Run | Yrd Mat Mat Min Zio Pro Machines Accessed 5 | . 4 1 . . . Terminals 3 | . 3 . . . . Fabricators . | . . . . . . Repair Stations . | . . . . . . Recycling Units 2 | . 1 1 . . . Scanalyzers . | . . . . . . Garrison Access . | . . . . . . Total Hacks 12 | . 9 3 . . . Successful 6 | . 5 1 . . . Failed 6 | . 4 2 . . . Catastrophic 1 | . 1 . . . . Database Lockouts . | . . . . . . Manual 9 | . 3 2 . 4 . Terminals 6 | . 6 . . . . Fabricators . | . . . . . . Repair Stations . | . . . . . . Recycling Units 6 | . 3 3 . . . Scanalyzers . | . . . . . . Garrison Access . | . . . . . . Terminal Hacks 3 | . 3 . . . . Prototype ID Bank 1 | . 1 . . . . Alert Level 1 | . 1 . . . . Locate Traps 1 | . 1 . . . . Fabricator Hacks . | . . . . . . Repair Station Hacks . | . . . . . . Recycling Unit Hacks 2 | . 1 1 . . . Report Inventory 2 | . 1 1 . . . Scanalyzer . | . . . . . . Garrison Access Hacks . | . . . . . . Unauthorized Hacks 1 | . 1 . . . . Terminals . | . . . . . . Fabricators . | . . . . . . Repair Stations . | . . . . . . Recycling Units 1 | . 1 . . . . Reject 1 | . 1 . . . . Scanalyzers . | . . . . . . Garrison Access . | . . . . . . Data Cores Recovered . | . . . . . . Used . | . . . . . . Hacking Detections 1 | . 1 . . . . Full Trace Events 1 | . 1 . . . . Feedback Events . | . . . . . . Feedback Blocked . | . . . . . . Robot Schematics Acquired 3 | . . . . 3 . Robots Built . | . . . . . . Authchips . | . . . . . . Time . | . . . . . . Total Robot Build Rating . | . . . . . . Part Schematics Acquired 15 | . . . . 15 . Parts Built . | . . . . . . Authchips . | . . . . . . Time . | . . . . . . Total Part Build Rating . | . . . . . . Parts Repaired . | . . . . . . Time . | . . . . . . Parts Recycled . | . . . . . . Recycled Matter . | . . . . . . Retrieved Matter . | . . . . . . Retrieved Components . | . . . . . . Parts Scanalyzed . | . . . . . . Part Schematics Acquired . | . . . . . . Parts Damaged . | . . . . . . Bothacking | -11 -10 -9 -9 -7 -6 ------------ Run | Yrd Mat Mat Min Zio Pro Used RIF Installer . | . . . . . . Robots Hacked . | . . . . . . Non-combat . | . . . . . . Combat . | . . . . . . Robot Hacks Applied . | . . . . . . Relay Couplers Released . | . . . . . . Fabnet Peak Effective % . | . . . . . . Robots Rewired . | . . . . . . Allies Hacked . | . . . . . . Hacks Repelled . | . . . . . . Allies | -11 -10 -9 -9 -7 -6 -------- Run | Yrd Mat Mat Min Zio Pro Total Allies 10 | . . . 1 9 . Largest Group 9 | . . . 1 9 9 Highest-Rated Group 308 | . . . 31 308 308 Highest-Rated Ally 51 | . . . 31 51 51 Total Orders . | . . . . . . Ally Attacks 43 | . . . 4 . 39 Total Damage 1361 | . . . 60 . 1301 Kills 14 | . . . 1 . 13 Allies Corrupted . | . . . . . . Allies Melted . | . . . . . . Intel | -11 -10 -9 -9 -7 -6 ------- Run | Yrd Mat Mat Min Zio Pro Robot Analysis Total . | . . . . . . Derelict Logs Recovered 4 | . . . . 2 2 Drone Launches . | . . . . . . Drone Recoveries . | . . . . . . Exploration | -11 -10 -9 -9 -7 -6 ------------- Run | Yrd Mat Mat Min Zio Pro Turns Passed 4931 | 79 375 333 199 3209 736 Spaces Moved 3675 | 52 177 180 97 2612 557 Core 15 | 14 . . . . 1 Treads 59 | . 59 . . . . Legs 3601 | 38 118 180 97 2612 556 Wheels . | . . . . . . Hover . | . . . . . . Flight . | . . . . . . Fastest Speed 50 | 50 120 120 120 120 120 Average Speed 121 | 123 143 120 120 120 120 Slowest Speed 260 | 150 190 120 120 120 260 Overloaded Moves . | . . . . . . Propulsion Burnouts . | . . . . . . Robots Hopped . | . . . . . . Cave-ins Triggered . | . . . . . . Exploration Rate (%) 42 | 5 38 24 16 93 76 Regions Visited 5 Branch Regions 3 Pre-discovered Areas 2 | . . . . 2 . Known Exits Taken 4 | . 1 1 1 1 . Unknown Exits Taken 1 | 1 . . . . . Scrap Searched 3 | . . . . 2 1 Spaces Dug . | . . . . . . Terrain Destroyed 34 | . . . 4 . 30 Melee . | . . . . . . Projectile . | . . . . . . AOE 34 | . . . 4 . 30 Terrain Rammed . | . . . . . . Walls Destroyed . | . . . . . . Machines Disabled . | . . . . . . Actions | -11 -10 -9 -9 -7 -6 --------- Run | Yrd Mat Mat Min Zio Pro Total 4022 | 65 257 264 150 2689 597 Wait 144 | . 28 37 12 65 2 Move 3670 | 51 176 179 96 2611 557 Hop . | . . . . . . Pick Up 42 | 7 11 9 7 5 3 Fast Attach 9 | 5 1 . 2 1 . Attach 16 | 1 2 5 1 . 7 Detach 2 | 1 . 1 . . . Swap 22 | . 6 5 5 1 5 Drop 36 | . 10 9 7 6 4 Fire 76 | . 23 19 20 . 14 Melee 4 | . . . . . 4 Ram . | . . . . . . Kick . | . . . . . . Crush . | . . . . . . Escape Stasis . | . . . . . . Rewire 1 | . . . . . 1 Trap . | . . . . . . Miscellaneous . | . . . . . . Route ------- -11/Scrapyard -10/Materials -9/Materials -9/Mines -7/Zion -6/Proximity Caves (discovered 1 exit: [*Fac]) History --------- Turn | Location | Event 21 | -11/Scrapyard | Discovered new exit (range 15) 80 | -11/Scrapyard | Entered Materials 318 | -10/Materials | Build established: Mutant 430 | -10/Materials | Discovered new exit (range 8) 455 | -10/Materials | Identified exit to Materials 455 | -10/Materials | Entered another Materials area 455 | -9/Materials | Evolved 2 slots: Propulsion x1, Utility x1 776 | -9/Materials | Discovered new exit (range 11) 787 | -9/Materials | Identified exit to Mines 788 | -9/Materials | Entered Mines 815 | -9/Mines | Met a Derelict testing a Signal Generator 830 | -9/Mines | Found Signal Generator 977 | -9/Mines | A Derelict revealed a hidden shortcut to a safe place 986 | -9/Mines | Identified exit to Zion 987 | -9/Mines | Entered Zion 1008 | -7/Zion | Received a hallucinogenic algorithm 1112 | -7/Zion | Discovered new exit (range 16) 1129 | -7/Zion | Identified exit to Proximity Caves 1194 | -7/Zion | Build established: Scavenger-Mutant 1259 | -7/Zion | Learned Factory emergency access door positions 1286 | -7/Zion | Learned 8 Factory zone layouts 1328 | -7/Zion | Learned location of Warlord (-5) 1505 | -7/Zion | Found Prototype Processor 1626 | -7/Zion | Found CR-A16's Pointy Stick 1717 | -7/Zion | Found Prototype Hackware 1893 | -7/Zion | Learned location of Armory (-3) 1975 | -7/Zion | Gained Derelict followers 2256 | -7/Zion | Imprinted 2259 | -7/Zion | Declared Zion's savior 4196 | -7/Zion | Entered Proximity Caves 4196 | -6/Proximity Caves | Accompanied by 9 allies 4260 | -6/Proximity Caves | Learned Factory emergency access door positions 4310 | -6/Proximity Caves | Learned Factory stockpile data 4425 | -6/Proximity Caves | Spotted B-75 Beast 4860 | -6/Proximity Caves | Discovered new exit (range 16) 4862 | -6/Proximity Caves | Attracted the attention of an 0b10 outpost 4867 | -6/Proximity Caves | Core integrity fell below 50% 4913 | -6/Proximity Caves | Destroyed 7 combat bots 4927 | -6/Proximity Caves | Core integrity fell below 20% 4932 | -6/Proximity Caves | Destroyed by EO-NWU(M) with Heavy Riot Gun Last Messages --------------- 04912_ Acquired 31 matter. 04913_ Microactuators self-destruct mechanism malfunctions. 04913_ Carbon-fiber Leg destroyed. 04914_ Chain reaction triggered in Imp. Deuterium Engine. 04915_ G-67 Veteran destroyed. 04916_ Acquired 53 matter. 04917_ Corrupted Imp. Deuterium Engine fries itself beyond repair. 04917_ Knocked back. 04918_ Corrupted Wave Gun self-destruct mechanism malfunctions. 04918_ Corrupted Imp. Treads fries itself beyond repair. 04919_ Imp. Grenade Launcher destroyed. 04920_ Imp. Medium Armor Plating self-destruct mechanism malfunctions. 04920_ PL-I0D(M) destroyed. 04921_ Corrupted Adv. Heat Sink fries itself beyond repair. 04924_ Aluminum Leg destroyed. 04929_ Chain reaction triggered in Rnf. Deuterium Engine. 04929_ B-48 Gladiator destroyed. 04929_ Ion Engine destroyed. 04930_ Corrupted Plasma Rifle self-destruct mechanism malfunctions. [Achievement: Achiever] Map ----- +----------------------------------------------------+ | ?????????????????????????????????????????????????? | | ?????????????????????????????????????????????????? | | ?????????????????????????????????????????????????? | | ?????????????????????????????????????????????????? | | ?????????????????????????????????????????????????? | | ?????????????????????????????????????????????????? | | ?????????????????????????????????????????????????? | | ?????????????????????????????????????????????????? | | ?????????????????????????????????????????????????? | | ?????????????????????????????????????????????????? | | ?????????????????????????????????????????????????? | | ?????????????????????????????????????????????????? | | ?????????????????????????????????????????????????? | | ?????????????????????????????????????????????????? | | ?????????????????????????????????????????????????? | | ?????????????????????????????????????????????????? | | ?????????????????????????????????????????????????? | | ????#####???????????######???????????????????????? | | ##### ##?????????## ##??????????????????????? | | # ##???????## #??????????????????????? | | ?# #???????# #????????????????????????? | | ?# #??###### #?????????????????????????? | | ?# #### ;#####????????????????????? | | ## #;;#;#####????????????????? | | # %*%= M [!%g #????????????????? | | ### " *% ! m[%@ = #???? #??????????? | | ##?##" """ ;;## ### #??????????? | | ##???# "" "" ! ;# # #???????????? | | #????# " #### ###### ###???????????? | | #????# """" #??#####??# ##?????????????? | | #??? """"" #???????# #??????????????? | | ##?? "" #???????# #??????????????? | | ##??? # #??????# % #??????????????? | | #???? ##########????? % #?????????????? | | #????? ?????????????? #?????????????? | | ##??? ????????????? #?????????????? | | #??? ????????????### #????????????? | | #?????????????????""" % ???????????? | | ##????????????????? % # / ??????????? | | #??????????????????? /% #?????????? | | ??????????????????? %* ### #?????????? | | ??????????????????? " ##??#???????????? | | ?????????????????????"# "<% ##???????????????? | | ???????????????????????? " ##????????????????? | | ?????????????????????????? #??????????????????? | | ?????????????????????????????????????????????????? | | ?????????????????????????????????????????????????? | | ?????????????????????????????????????????????????? | | ?????????????????????????????????????????????????? | | ?????????????????????????????????????????????????? | +----------------------------------------------------+ Best States ------------- Heat Dissipation 42 Energy Generation 14 Energy Capacity 265 Matter Stores 300 Matter Capacity 300 Sight Range 16 Robot Scan Range 14 Terrain Scan Density 10 Armor Coverage 150 Evasion (%) 55 Armor Integrity Analysis 40 Recoil Reduction 2 Item Schematics ----------------- Coolant Injector | -7/Zion | Archive Coil Gun | -7/Zion | Archive Imp. Titanium Leg | -7/Zion | Archive Imp. Proton Missile Launcher | -7/Zion | Archive Launcher Guidance Computer | -7/Zion | Archive Adv. Terrain Scanner | -7/Zion | Archive Slug Cannon | -7/Zion | Archive Wave Gun | -7/Zion | Archive Variable Charge Gun | -7/Zion | Archive Hrd. Heavy Armor Plating | -7/Zion | Archive Imp. Core Shielding | -7/Zion | Archive Imp. Carbon-fiber Leg | -7/Zion | Archive Enh. Optical Array | -7/Zion | Archive Adv. Signal Interpreter | -7/Zion | Archive Imp. Cooling System | -7/Zion | Archive Robot Schematics ------------------ S-27 Virus | -7/Zion | Archive M-14 Sweeper | -7/Zion | Archive T-07 Excavator | -7/Zion | Archive Fabricated ------------ Nothing Alien Tech Used ----------------- None Achievements -------------- Achiever True Hacker Challenges ------------ None Game ------ Seed CatalystGuidedLance Manual? 0 Play Time 00:59:05 Cumulative 49.3 hours Start 2024.07.12 @ 19:43:49 End 2024.07.12 @ 20:52:09 Sessions 1 Manual Loads 0 Difficulty Rogue Special Mode None Game No. 28 Rogue 28 Adventurer 0 Explorer 0 Win Type - Total 0 Types 0/0/0/0/0/0/0/0/0 Lore% 19 Gallery% 37 Achievement% 25 Wizard Run 0 Options --------- Layout 0 ASCII 0 Keyboard 0 Movement Mouse Keybinds 0 Fullscreen 1 Font 18/SmallcapsGlow Map View 76x50 Zoom Use 0% Tactical HUD 1 Map Filters NONE Filters NONE Steam 1 RUN: 3e5d8300-e44d-48e8-a69d-cf3ea21af06b